bitfinex-derivatives/quotes_SOLF0:USTF0_20260316
["timestamp","ask_amount","ask_price","bid_price","bid_amount"]
[1773654746951,13.5933331,93.429,93.379,33.72]
[1773654747156,3.66486468,93.42,93.379,33.72]
[1773654747454,13.5452806,93.419,93.379,33.72]
[1773654750157,13.54489395,93.409,93.362,9.868411]
[1773654750357,13.54489395,93.409,93.361,9.868411]
[1773654751555,13.54489395,93.409,93.36,13.53327568]
[1773654752354,13.56523643,93.399,93.355,33.72]
[1773654753357,13.55047597,93.412,93.37,3.66486468]
[1773654754762,13.52801349,93.429,93.38,3.66486468]
[1773654755260,13.52801349,93.429,93.39,3.66486468]
[1773654755958,13.52801349,93.429,93.38,3.66486468]
[1773654758758,13.52801349,93.429,93.37,3.66486468]
[1773654760058,13.52801349,93.429,93.38,3.66486468]
[1773654762063,13.52801349,93.429,93.37,13.53327568]
[1773654762264,13.52801349,93.429,93.371,9.868411]
[1773654762462,13.52801349,93.429,93.37,13.53327568]
[1773654762663,13.52801349,93.429,93.371,9.868411]
[1773654763164,13.52801349,93.429,93.37,13.53327568]
[1773654763360,13.52801349,93.429,93.38,3.66486468]
[1773654763562,13.52801349,93.429,93.37,13.53327568]
[1773654763758,13.52801349,93.429,93.371,9.868411]
[1773654763963,13.52801349,93.429,93.37,13.53327568]
[1773654764861,13.52801349,93.429,93.37,9.868411]
[1773654765064,13.52801349,93.429,93.37,13.53327568]
[1773654765866,13.52801349,93.429,93.371,9.868411]
[1773654766367,13.52801349,93.429,93.372,9.868411]
[1773654767064,13.52801349,93.429,93.371,9.868411]
[1773654767662,13.52801349,93.429,93.372,9.868411]
[1773654767867,13.52801349,93.429,93.38,3.66486468]
[1773654776577,13.52801349,93.429,93.376,9.868411]
[1773654777375,13.52801349,93.429,93.377,9.868411]
[1773654778477,13.52801349,93.429,93.378,9.868411]
[1773654780279,13.52801349,93.429,93.379,9.868411]
[1773654781175,13.52801349,93.429,93.38,3.66486468]
[1773654781376,13.52801349,93.429,93.39,3.66486468]
[1773654782378,13.71274454,93.44,93.39,9.868411]
[1773654782676,19.253,93.487,93.41,13.53327568]
[1773654782677,13.71274454,93.459,93.41,13.53327568]
[1773654783080,13.71274454,93.459,93.41,3.66486468]
[1773654784276,13.71274454,93.459,93.42,3.66486468]
[1773654784874,13.71274454,93.459,93.42,3.66398825]
[1773654787784,3.66398825,93.48,93.43,3.66398825]
[1773654787785,13.76910081,93.479,93.43,3.66398825]
[1773654788184,13.76910081,93.479,93.42,3.66398825]
[1773654789181,13.76910081,93.479,93.43,3.66398825]
[1773654791086,13.76910081,93.479,93.42,3.66398825]
[1773654792187,13.77054716,93.459,93.406,9.868411]
[1773654792388,13.77054716,93.449,93.4,3.66398825]
[1773654793092,13.77054716,93.449,93.41,3.66398825]
[1773654793295,13.77054716,93.449,93.42,3.66398825]
[1773654793890,13.77348991,93.469,93.399,43.588411]
[1773654794096,13.77348991,93.469,93.42,3.66398825]
[1773654796593,13.78792933,93.459,93.4,3.66398825]
[1773654797493,13.78792933,93.459,93.388,33.72]
[1773654797494,13.78792933,93.459,93.41,3.66398825]
[1773654797790,13.78792933,93.459,93.42,3.66398825]
[1773654798793,13.71081486,93.449,93.39,3.66398825]
[1773654799697,13.70537485,93.439,93.39,3.66398825]
[1773654800300,13.70537485,93.439,93.386,9.868411]
[1773654800497,13.70537485,93.439,93.39,3.66398825]
[1773654802199,13.70537485,93.439,93.4,3.66398825]
[1773654802999,13.70537485,93.439,93.384,33.72]
[1773654803502,13.70537485,93.439,93.39,3.66398825]
[1773654807100,13.70537485,93.439,93.384,33.72]
[1773654807296,3.66398825,93.43,93.384,33.72]
[1773654807496,13.69564065,93.429,93.384,33.72]
[1773654808802,3.66398825,93.42,93.384,33.72]
[1773654809003,13.69668898,93.419,93.384,33.72]
[1773654812102,13.69668898,93.419,93.37,3.66398825]
[1773654812301,13.6732466,93.409,93.361,9.868411]
[1773654812501,13.6732466,93.409,93.36,33.72]
[1773654815506,13.67451311,93.399,93.36,33.72]
[1773654816008,13.67451311,93.399,93.36,37.38398825]
[1773654817000,13.67451311,93.399,93.36,33.72]
[1773654821004,13.68556024,93.419,93.37,3.66398825]
[1773654821306,13.68556024,93.419,93.36,33.72]
[1773654821507,13.68556024,93.419,93.37,3.66398825]
[1773654821904,13.68556024,93.419,93.38,3.66398825]
[1773654827014,13.68556024,93.419,93.37,3.66398825]
[1773654827312,3.66398825,93.41,93.366,9.868411]
[1773654827516,3.66398825,93.41,93.36,33.72]
[1773654827517,13.65969432,93.409,93.36,33.72]
[1773654827914,13.65969432,93.409,93.36,37.38398825]
[1773654828416,13.65969432,93.409,93.37,3.66398825]
[1773654829517,13.65969432,93.409,93.36,37.38398825]
[1773654829920,13.65969432,93.409,93.36,33.72]
[1773654834623,13.65969432,93.409,93.36,37.38398825]
[1773654836419,13.65969432,93.409,93.36,33.72]
[1773654837624,13.65969432,93.409,93.36,37.38398825]
[1773654839724,13.71403743,93.399,93.36,33.72]
[1773654840635,13.71391258,93.389,93.336,9.868411]
[1773654841034,13.71391258,93.389,93.335,9.868411]
[1773654841333,13.71391258,93.389,93.34,3.66398825]
[1773654841530,13.72554973,93.379,93.328,9.868411]
[1773654841726,13.72554973,93.379,93.326,33.72]
[1773654844729,13.72554973,93.379,93.33,3.67140928]
[1773654846737,13.72554973,93.379,93.326,33.72]
[1773654848934,3.67140928,93.39,93.34,3.67140928]
[1773654849239,17.39059535,93.39,93.34,3.67140928]
[1773654849440,13.71918607,93.389,93.34,3.67140928]
[1773654850137,13.71918607,93.389,93.33,13.53982028]
[1773654850339,13.71918607,93.389,93.33,3.67140928]
[1773654851138,13.70440866,93.379,93.328,9.868411]
[1773654851535,13.70440866,93.379,93.331,9.868411]
[1773654852235,13.70817845,93.359,93.323,9.868411]
[1773654852431,13.70817845,93.359,93.275,25.98786645]
[1773654852432,13.70817845,93.359,93.312,9.868411]
[1773654852634,13.70817845,93.359,93.311,9.868411]
[1773654852836,13.70817845,93.359,93.306,33.74]
[1773654852837,13.70817845,93.359,93.307,9.868411]
[1773654853135,13.70817845,93.359,93.31,3.67140928]
[1773654854837,13.70817845,93.359,93.32,3.67140928]
[1773654855239,13.70817845,93.359,93.31,3.67140928]
[1773654858745,13.70817845,93.359,93.306,33.74]
[1773654859946,13.70817845,93.359,93.31,3.67140928]
[1773654860347,10.71,93.426,93.306,33.74]
[1773654860348,13.65959971,93.349,93.306,33.74]
[1773654867851,13.6926157,93.361,93.306,33.74]
[1773654868153,13.6926157,93.361,93.32,3.67140928]
[1773654868560,13.69137456,93.375,93.33,3.67140928]
[1773654869151,13.69137456,93.375,93.32,3.67140928]
[1773654871254,13.69137456,93.375,93.306,33.74]
[1773654871449,13.69259909,93.369,93.32,3.67140928]
[1773654883265,13.70703197,93.359,93.306,33.74]
[1773654887362,19.273,93.388,93.306,33.74]
[1773654887363,13.67288387,93.374,93.306,33.74]
[1773654887672,13.67288387,93.374,93.32,3.67140928]
[1773654891872,13.67288387,93.374,93.33,3.67140928]
[1773654894971,13.67288387,93.374,93.32,3.67140928]
[1773654895172,13.67288387,93.374,93.317,9.868411]
[1773654895370,13.67288387,93.374,93.32,3.67140928]
[1773654895871,13.71322667,93.349,93.307,9.868411]
[1773654896072,13.71322667,93.349,93.3,9.868411]
[1773654896371,13.71322667,93.349,93.3,3.67140928]
[1773654896673,13.71322667,93.349,93.3,13.53982028]
[1773654897172,13.71322667,93.349,93.301,9.868411]
[1773654897474,13.71322667,93.349,93.308,9.868411]
[1773654897874,13.71322667,93.349,93.306,9.868411]
[1773654902276,13.71322667,93.349,93.305,9.868411]
[1773654902674,13.71322667,93.349,93.31,3.67140928]
[1773654902976,13.71322667,93.349,93.314,9.868411]
[1773654903380,13.71322667,93.349,93.306,9.868411]
[1773654904276,13.71322667,93.349,93.305,9.868411]
[1773654906882,13.71322667,93.349,93.307,9.868411]
[1773654908182,13.71322667,93.349,93.308,9.868411]
[1773654910082,13.71322667,93.349,93.309,9.868411]
[1773654912281,13.71322667,93.349,93.31,9.868411]
[1773654914188,13.71322667,93.349,93.309,9.868411]
[1773654915990,13.71322667,93.349,93.313,9.868411]
[1773654916883,13.71322667,93.349,93.312,9.868411]
[1773654917083,3.67325793,93.37,93.312,9.868411]
[1773654917484,3.67325793,93.37,93.32,3.67325793]
[1773654918682,3.67325793,93.38,93.32,3.67325793]
[1773654919095,12.59871284,93.369,93.313,9.868411]
[1773654920394,12.59871284,93.369,93.32,3.67325793]
[1773654920597,12.59871284,93.369,93.33,3.67325793]
[1773654921789,12.59871284,93.369,93.324,9.868411]
[1773654921994,12.59871284,93.369,93.32,9.868411]
[1773654922194,12.59871284,93.369,93.319,9.868411]
[1773654922784,3.67325793,93.36,93.319,9.868411]
[1773654922988,3.67325793,93.36,93.308,33.74]
[1773654922989,12.58435079,93.359,93.313,9.868411]
[1773654924299,12.58435079,93.359,93.316,9.868411]
[1773654924987,12.58435079,93.359,93.313,9.868411]
[1773654926891,12.58435079,93.359,93.319,9.868411]
[1773654927493,12.58435079,93.359,93.32,9.868411]
[1773654930702,12.62431301,93.349,93.312,9.868411]
[1773654932901,12.62431301,93.349,93.316,9.868411]
[1773654935704,12.62431301,93.349,93.312,9.868411]
[1773654936294,12.62431301,93.349,93.313,9.868411]
[1773654938095,12.62431301,93.349,93.314,9.868411]
[1773654940204,12.62431301,93.349,93.315,9.868411]
[1773654943605,12.59571078,93.339,93.31,9.868411]
[1773654943804,12.59571078,93.339,93.308,33.74]
[1773654944606,12.59179882,93.352,93.308,33.74]
[1773654944809,12.59179882,93.352,93.31,13.54166893]
[1773654946108,12.59179882,93.352,93.31,9.868411]
[1773654947211,12.59179882,93.352,93.31,13.54166893]
[1773654947413,12.59179882,93.352,93.318,9.868411]
[1773654948109,12.59179882,93.352,93.31,3.67325793]
[1773654948110,12.60219655,93.363,93.322,9.868411]
[1773654948913,12.60219655,93.363,93.326,9.868411]
[1773654951114,12.60219655,93.363,93.325,9.868411]
[1773654953717,12.60219655,93.363,93.33,9.868411]
[1773654953916,12.60219655,93.363,93.329,9.868411]
[1773654954215,12.61639784,93.359,93.322,9.868411]
[1773654954420,12.61639784,93.359,93.317,9.868411]
[1773654955315,12.61639784,93.359,93.321,9.868411]
[1773654962328,12.61639784,93.359,93.322,9.868411]
[1773654965725,12.60506771,93.379,93.332,9.868411]
[1773654967227,12.60506771,93.379,93.331,9.868411]
[1773654967733,12.60506771,93.379,93.33,3.67103324]
[1773654967734,12.60506771,93.379,93.332,9.868411]
[1773654968232,12.60506771,93.379,93.331,9.868411]
[1773654968623,12.60506771,93.379,93.33,3.67103324]
[1773654968624,12.60506771,93.379,93.33,9.868411]
[1773654970029,12.60506771,93.379,93.33,13.53944424]
[1773654970533,12.60506771,93.379,93.33,9.868411]
[1773654971233,12.60506771,93.379,93.329,9.868411]
[1773654971934,12.60506771,93.379,93.33,9.868411]
[1773654972133,12.60506771,93.379,93.329,9.868411]
[1773654975937,12.60506771,93.379,93.33,9.868411]
[1773654976128,12.60506771,93.379,93.329,9.868411]
[1773654977432,12.60506771,93.379,93.32,3.67103324]
[1773654977433,12.60506771,93.379,93.327,9.868411]
[1773654977736,12.60506771,93.379,93.329,9.868411]
[1773654979837,12.60506771,93.379,93.327,9.868411]
[1773654980135,12.60506771,93.379,93.329,9.868411]
[1773654981638,12.60506771,93.379,93.327,9.868411]
[1773654981838,12.60506771,93.379,93.326,9.868411]
[1773654982945,12.57772838,93.359,93.322,9.868411]
[1773654983144,12.57772838,93.359,93.32,9.868411]
[1773654983334,12.57772838,93.359,93.319,9.868411]
[1773654984038,12.59502343,93.349,93.319,9.868411]
[1773654985341,12.59502343,93.349,93.32,9.868411]
[1773654988246,12.59502343,93.349,93.317,9.868411]
[1773654988446,12.59502343,93.349,93.313,9.868411]
[1773654992851,12.59502343,93.349,93.312,9.868411]
[1773654996148,12.59502343,93.349,93.311,9.868411]
[1773655001257,12.59502343,93.349,93.31,9.868411]
[1773655001961,12.59502343,93.349,93.31,9.92710645]
[1773655007565,12.59502343,93.349,93.309,9.92710645]
[1773655008763,12.57474978,93.359,93.309,9.92710645]
[1773655008966,12.57474978,93.359,93.318,9.92710645]
[1773655010467,12.57474978,93.359,93.316,9.92710645]
[1773655010868,12.57519297,93.349,93.312,9.92710645]
[1773655011067,12.57519297,93.349,93.309,9.92710645]
[1773655011268,12.57519297,93.349,93.31,9.92710645]
[1773655017173,12.57519297,93.349,93.311,9.92710645]
[1773655018568,12.57519297,93.349,93.31,3.67103324]
[1773655018569,12.57519297,93.349,93.315,9.92710645]
[1773655019875,12.57519297,93.349,93.319,9.92710645]
[1773655020075,12.57519297,93.349,93.32,9.92710645]
[1773655020969,12.57519297,93.349,93.318,9.92710645]
[1773655022272,12.57519297,93.349,93.32,9.92710645]
[1773655022780,12.57427878,93.379,93.32,13.59813969]
[1773655023180,12.57427878,93.379,93.325,9.92710645]
[1773655023679,12.54230982,93.369,93.325,9.92710645]
[1773655025373,12.54230982,93.369,93.32,3.67103324]
[1773655025374,12.54230982,93.369,93.324,9.92710645]
[1773655025679,12.54230982,93.369,93.326,9.92710645]
[1773655026080,12.54230982,93.369,93.32,3.67103324]
[1773655026281,12.54230982,93.369,93.326,9.92165784]
[1773655029085,12.54230982,93.369,93.33,3.67229832]
[1773655029688,12.54230982,93.369,93.33,13.59395616]
[1773655030689,12.54230982,93.369,93.33,3.67229832]
[1773655030891,12.54230982,93.369,93.326,9.92165784]
[1773655031285,12.54230982,93.369,93.327,9.92165784]
[1773655031489,12.54230982,93.369,93.329,9.92165784]
[1773655032582,12.54230982,93.369,93.325,9.92165784]
[1773655033094,12.54230982,93.369,93.327,9.92165784]
[1773655033992,12.54230982,93.369,93.329,9.92165784]
[1773655034193,12.54230982,93.369,93.328,9.92165784]
[1773655034892,12.54230982,93.369,93.326,9.92165784]
[1773655035896,12.54230982,93.369,93.328,9.92165784]
[1773655036191,12.54230982,93.369,93.326,9.92165784]
[1773655038296,12.54230982,93.369,93.325,9.92165784]
[1773655038500,12.54230982,93.369,93.323,9.92165784]
[1773655039198,12.54230982,93.369,93.321,9.92165784]
[1773655039596,12.54230982,93.369,93.324,9.92165784]
[1773655039802,12.54230982,93.369,93.32,9.92165784]
[1773655039998,12.54230982,93.369,93.318,9.92165784]
[1773655040210,12.54230982,93.369,93.319,9.92165784]
[1773655040701,12.54230982,93.369,93.323,9.92165784]
[1773655040902,12.54230982,93.369,93.324,9.92165784]
[1773655041898,12.54230982,93.369,93.323,9.92165784]
[1773655043303,12.54230982,93.369,93.324,9.92165784]
[1773655049317,12.54230982,93.369,93.325,9.92165784]
[1773655049814,12.54230982,93.369,93.323,9.92165784]
[1773655050717,12.54230982,93.369,93.325,9.92165784]
[1773655053321,12.54230982,93.369,93.326,9.92165784]
[1773655053917,12.54230982,93.369,93.324,9.92165784]
[1773655054117,12.54230982,93.369,93.326,9.92165784]
[1773655054721,12.54230982,93.369,93.326,9.92933212]
[1773655055121,12.54230982,93.369,93.325,9.92933212]
[1773655056219,12.54230982,93.369,93.326,9.92933212]
[1773655058320,12.54230982,93.369,93.327,9.92933212]
[1773655060321,12.54230982,93.369,93.325,9.92933212]
[1773655061011,12.54230982,93.369,93.327,9.92933212]
[1773655061320,12.54230982,93.369,93.328,9.92933212]
[1773655062411,12.54230982,93.369,93.326,9.92933212]
[1773655062912,12.54230982,93.369,93.328,9.92933212]
[1773655063118,12.54230982,93.369,93.329,9.92933212]
[1773655065624,12.54230982,93.369,93.33,9.92933212]
[1773655066423,12.54230982,93.369,93.33,13.60163044]
[1773655066625,12.54230982,93.369,93.334,9.92933212]
[1773655068732,12.58874652,93.359,93.31,3.67229832]
[1773655069126,12.58874652,93.359,93.308,33.74]
[1773655072728,12.58874652,93.359,93.32,3.67229832]
[1773655073227,12.58874652,93.359,93.31,3.67229832]
[1773655076127,3.67229832,93.35,93.301,12.99393602]
[1773655076432,12.5845902,93.349,93.301,12.99393602]
[1773655076927,12.5845902,93.349,93.3,3.67229832]
[1773655076928,12.5845902,93.369,93.31,3.67229832]
[1773655077831,12.5845902,93.369,93.32,3.67229832]
[1773655079930,12.57069483,93.387,93.34,3.67229832]
[1773655081325,12.53051611,93.369,93.31,3.67229832]
[1773655082331,12.53051611,93.369,93.32,3.67229832]
[1773655087838,12.53051611,93.369,93.31,3.67229832]
[1773655088543,12.53051611,93.369,93.32,3.67229832]
[1773655088745,12.53051611,93.369,93.32,3.67212901]
[1773655090842,12.53051611,93.369,93.317,12.99393602]
[1773655093849,12.53051611,93.369,93.311,12.99393602]
[1773655094048,12.53051611,93.369,93.31,3.67212901]
[1773655098654,3.67212901,93.36,93.31,3.67212901]
[1773655098856,12.54529014,93.359,93.31,3.67212901]
[1773655100356,12.56191452,93.339,93.297,12.99393602]
[1773655100557,12.56191452,93.339,93.291,33.74]
[1773655100558,12.56191452,93.339,93.296,12.99393602]
[1773655101255,12.56191452,93.339,93.295,12.99393602]
[1773655104160,12.56191452,93.339,93.294,12.99393602]
[1773655107161,12.56191452,93.339,93.293,12.99393602]
[1773655116374,12.56191452,93.339,93.292,12.99393602]
[1773655116572,12.56757221,93.309,93.291,33.74]
[1773655116772,12.56757221,93.309,93.26,37.41212901]
[1773655117672,12.57165131,93.299,93.26,33.74]
[1773655120471,7.85155763,93.341,93.238,33.74]
[1773655120472,12.54639423,93.289,93.238,33.74]
[1773655120675,3.67212901,93.27,93.237,33.74]
[1773655120874,3.67212901,93.27,93.23,33.74]
[1773655121470,12.54639423,93.279,93.23,37.41212901]
[1773655122473,12.54639423,93.279,93.23,33.74]
[1773655123978,16.1831011,93.29,93.24,3.67212901]
[1773655125073,16.1831011,93.29,93.23,37.41212901]
[1773655125478,12.49866666,93.289,93.23,37.41212901]
[1773655126873,12.49866666,93.289,93.23,33.74]
[1773655127076,12.49866666,93.289,93.23,37.41212901]
[1773655127677,12.49783812,93.279,93.23,37.41212901]
[1773655129587,12.49592286,93.29,93.25,3.67212901]
[1773655129885,12.49592286,93.29,93.24,3.67212901]
[1773655130583,16.16805187,93.29,93.24,3.67212901]
[1773655130979,12.49592286,93.29,93.24,3.67212901]
[1773655131780,12.20467143,93.29,93.24,3.67212901]
[1773655131989,12.20467143,93.29,93.25,3.67212901]
[1773655133485,12.20467143,93.29,93.24,3.67212901]
[1773655133679,3.67212901,93.29,93.23,37.41212901]
[1773655133887,12.39761643,93.289,93.23,37.41212901]
[1773655134082,12.39761643,93.289,93.24,3.67212901]
[1773655135785,12.39761643,93.289,93.23,37.41212901]
[1773655135989,12.39761643,93.289,93.24,3.67212901]
[1773655139692,12.39761643,93.289,93.23,37.41212901]
[1773655141090,12.36988051,93.279,93.23,37.41212901]
[1773655141289,12.36988051,93.279,93.23,33.74]
[1773655145094,12.36988051,93.279,93.23,37.41212901]
[1773655146594,12.36988051,93.279,93.23,33.74]
[1773655147392,12.3512135,93.269,93.23,33.74]
[1773655158214,12.34485676,93.259,93.207,33.76]
[1773655158914,12.34485676,93.259,93.21,3.67976272]
[1773655159714,12.34640315,93.276,93.22,3.67976272]
[1773655161316,12.34640315,93.276,93.223,9.88115675]
[1773655161918,12.34640315,93.276,93.221,9.88115675]
[1773655162119,12.36256557,93.269,93.216,9.88115675]
[1773655162618,12.36256557,93.269,93.23,3.67976272]
[1773655163019,12.36256557,93.269,93.225,9.88115675]
[1773655163219,12.36256557,93.269,93.227,9.88115675]
[1773655163517,12.36256557,93.269,93.22,3.67976272]
[1773655163518,12.36256557,93.269,93.225,9.88115675]
[1773655163918,12.36256557,93.269,93.224,9.88115675]
[1773655164120,12.36256557,93.269,93.22,13.56091947]
[1773655164420,12.36256557,93.269,93.222,9.88115675]
[1773655164822,12.36256557,93.269,93.22,3.67976272]
[1773655165215,12.36256557,93.269,93.22,13.56091947]
[1773655165418,12.36256557,93.269,93.222,9.88115675]
[1773655166622,12.36256557,93.269,93.224,9.88115675]
[1773655166824,12.36256557,93.269,93.222,9.88115675]
[1773655167319,12.36256557,93.269,93.226,9.88115675]
[1773655168014,12.36256557,93.269,93.23,3.67976272]
[1773655170325,12.36518955,93.289,93.25,3.67976272]
[1773655170520,12.36518955,93.289,93.24,3.67976272]
[1773655175027,12.35489086,93.279,93.23,3.67976272]
[1773655177329,12.35489086,93.279,93.24,3.67976272]
[1773655177528,12.35489086,93.279,93.234,9.88115675]
[1773655179933,12.42724319,93.293,93.24,3.67976272]
[1773655180129,12.42724319,93.293,93.25,3.67976272]
[1773655180529,12.42724319,93.293,93.244,9.88115675]
[1773655180935,12.42724319,93.293,93.247,9.88115675]
[1773655181537,12.42724319,93.293,93.26,3.67976272]
[1773655182029,12.42724319,93.293,93.259,9.88115675]
[1773655182239,12.45850497,93.336,93.27,3.67976272]
[1773655182429,12.45850497,93.329,93.27,3.67976272]
[1773655183133,12.45850497,93.329,93.28,3.67976272]
[1773655184933,12.45850497,93.329,93.27,3.67976272]
[1773655193142,12.45850497,93.329,93.262,9.88115675]
[1773655193143,12.45850497,93.329,93.28,3.67976272]
[1773655193544,12.45850497,93.329,93.251,33.74]
[1773655193545,12.45850497,93.329,93.27,3.67976272]
[1773655195341,12.45850497,93.329,93.26,9.88115675]
[1773655195548,12.45850497,93.329,93.28,3.67976272]
[1773655197249,12.45850497,93.329,93.27,3.67976272]
[1773655198545,12.44162347,93.319,93.27,3.67976272]
[1773655199951,3.67976272,93.31,93.26,3.67976272]
[1773655200148,12.44345142,93.309,93.26,3.67976272]
[1773655200344,12.44345142,93.309,93.27,3.67976272]
[1773655200745,12.44345142,93.309,93.28,3.67976272]
[1773655201351,12.44046231,93.339,93.29,3.67976272]
[1773655201542,12.44046231,93.372,93.32,3.67976272]
[1773655201747,12.44046231,93.369,93.32,3.67976272]
[1773655201947,12.44046231,93.369,93.31,3.67976272]
[1773655202253,12.44046231,93.359,93.31,3.67976272]
[1773655202550,12.44046231,93.359,93.3,3.67976272]
[1773655202747,12.43755211,93.349,93.29,3.67976272]
[1773655202949,12.43755211,93.339,93.28,3.67976272]
[1773655205755,3.67976272,93.33,93.28,3.67976272]
[1773655205954,12.44062213,93.329,93.28,3.67976272]
[1773655206257,12.44062213,93.329,93.271,33.74]
[1773655206655,12.44057087,93.319,93.271,33.74]
[1773655213252,12.44057087,93.319,93.256,9.88115675]
[1773655213558,12.44057087,93.319,93.248,33.74]
[1773655213559,12.44057087,93.319,93.26,3.67641146]
[1773655216361,12.44057087,93.319,93.26,13.55756821]
[1773655218362,12.44057087,93.319,93.27,3.67641146]
[1773655221760,3.67641146,93.33,93.27,3.67641146]
[1773655221965,12.38944475,93.332,93.28,3.67641146]
[1773655224558,12.38944475,93.332,93.3,3.67641146]
[1773655224763,12.40615272,93.344,93.31,3.67641146]
[1773655225369,12.40615272,93.344,93.296,9.88115675]
[1773655225569,12.40615272,93.344,93.295,9.88115675]
[1773655226273,12.40615272,93.344,93.29,3.67641146]
[1773655226274,12.40615272,93.344,93.296,9.88115675]
[1773655226473,12.40615272,93.344,93.3,3.67641146]
[1773655226673,12.39598498,93.339,93.295,9.88115675]
[1773655226971,12.39598498,93.329,93.29,13.55756821]
[1773655227175,12.39598498,93.329,93.3,3.67641146]
[1773655227573,12.39598498,93.329,93.29,9.95114651]
[1773655227574,12.39586904,93.359,93.31,3.67641146]
[1773655228171,12.39586904,93.359,93.295,9.95114651]
[1773655228378,12.39586904,93.359,93.32,3.67641146]
[1773655228678,12.40014989,93.407,93.34,3.67641146]
[1773655228976,3.67641146,93.38,93.33,3.67641146]
[1773655229170,12.40014989,93.379,93.32,3.67641146]
[1773655229572,12.39814475,93.369,93.314,9.95114651]
[1773655229772,12.39814475,93.369,93.311,9.95114651]
[1773655229972,12.39814475,93.369,93.32,3.67641146]
[1773655232174,12.39814475,93.369,93.31,3.67641146]
[1773655232770,3.67641146,93.36,93.31,3.67641146]
[1773655232976,12.39674698,93.359,93.31,3.67641146]
[1773655233976,12.4105525,93.339,93.285,9.95114651]
[1773655234380,12.4105525,93.339,93.284,9.95114651]
[1773655234581,12.41226426,93.329,93.28,3.67641146]
[1773655234782,12.41226426,93.329,93.28,13.62755797]
[1773655234977,12.41226426,93.349,93.3,3.67641146]
[1773655236677,12.39892771,93.369,93.32,3.67641146]
[1773655236880,12.39892771,93.369,93.33,3.67641146]
[1773655237681,12.39892771,93.369,93.32,3.67641146]
[1773655239280,12.39892771,93.369,93.31,3.67641146]
[1773655239584,12.42253603,93.349,93.304,33.74]
[1773655256389,3.67641146,93.35,93.304,33.74]
[1773655256591,10.72,93.403,93.304,33.74]
[1773655256592,14.30489435,93.394,93.317,9.91154344]
[1773655256794,14.30489435,93.379,93.32,3.67641146]
[1773655257192,14.29257847,93.369,93.318,9.91154344]
[1773655257391,14.29257847,93.369,93.313,9.91154344]
[1773655258101,14.29257847,93.369,93.31,3.67641146]
[1773655261001,14.28255771,93.349,93.304,33.74]
[1773655263505,19.271,93.399,93.304,33.74]
[1773655263506,14.27829746,93.329,93.304,33.74]
[1773655267609,14.27829746,93.329,93.288,9.91154344]
[1773655268109,3.67641146,93.32,93.288,9.91154344]
[1773655268305,14.27790491,93.319,93.281,43.65154344]
[1773655268510,14.27790491,93.319,93.281,33.74]
[1773655273215,14.27790491,93.319,93.276,9.91154344]
[1773655273409,3.6758796,93.3,93.258,9.91154344]
[1773655273615,14.28237693,93.304,93.258,9.91154344]
[1773655273915,14.28237693,93.304,93.26,9.91154344]
[1773655274111,14.28237693,93.317,93.26,3.6758796]
[1773655274316,14.28237693,93.317,93.262,9.91154344]
[1773655274816,14.28237693,93.317,93.267,9.91154344]
[1773655275220,14.28237693,93.317,93.266,9.91154344]
[1773655276019,14.31510433,93.33,93.28,3.6758796]
[1773655276317,14.30297069,93.42,93.32,3.6758796]
[1773655276614,14.30297069,93.42,93.255,107.227]
[1773655276615,14.30297069,93.42,93.341,9.89532493]
[1773655276814,14.30297069,93.42,93.326,32.15]
[1773655276815,14.30297069,93.42,93.39,3.6758796]
[1773655277112,14.30297069,93.42,93.37,3.6758796]
[1773655277316,14.30297069,93.42,93.39,3.6758796]
[1773655277715,14.30297069,93.42,93.376,33.76]
[1773655277912,14.30297069,93.42,93.373,33.76]
[1773655278612,14.30297069,93.42,93.38,3.6758796]
[1773655279317,10.72,93.509,93.373,33.76]
[1773655279318,19.21970563,93.477,93.373,33.76]
[1773655279518,19.21970563,93.477,93.42,3.6758796]
[1773655280217,19.23787763,93.511,93.411,33.76]
[1773655280514,13.26786416,93.575,93.411,33.76]
[1773655280515,19.22965584,93.479,93.43,3.6758796]
[1773655280719,19.22965584,93.479,93.42,3.6758796]
[1773655280920,19.22965584,93.479,93.43,3.6758796]
[1773655281918,19.22965584,93.479,93.42,3.6758796]
[1773655282624,33.74,93.551,93.42,3.6758796]
[1773655282625,22.91417735,93.47,93.42,3.6758796]
[1773655282923,19.23829775,93.47,93.411,33.76]
[1773655283717,19.23829775,93.47,93.378,33.74]
[1773655283718,19.24945869,93.469,93.378,33.74]
[1773655286919,19.24945869,93.469,93.39,9.16103343]
[1773655290929,19.24945869,93.469,93.378,33.74]
[1773655296931,9.16103343,93.46,93.378,33.74]
[1773655297133,19.2044706,93.459,93.378,33.74]
[1773655299330,19.22495588,93.439,93.378,33.74]
[1773655299533,19.22495588,93.439,93.35,33.72]
[1773655302331,19.19131016,93.429,93.35,33.72]